Cogmind - Beta 16 @@@ ROGUE MODE // 2025.11.10 @ 04:42:30 Player: jes Result: Destroyed by S-10 Pest with Light Assault Rifle Performance ------------- Evolutions (0) 0 Regions Visited (4) 800 Robots Destroyed (13) 65 Value Destroyed (415) 415 Prototype IDs (2) 40 Alien Tech Used (0) 0 Bonus (0) 0 TOTAL SCORE: 1320 Bonus ------- None Cogmind --------- Core Integrity 0/250 Matter 281/300 Energy 125/125 System Corruption 0% Temperature Cool (0) Movement Walking (120) Location -9/Mines Parts ------- > --- POWER (1) -------- Light Ion Engine > --- PROPULSION (2) --- Aluminum Leg Aluminum Leg > --- UTILITY (2) ------ Small Storage Unit Weapon Shielding > --- WEAPON (2) ------- Light Assault Rifle Rocket Launcher > --- INVENTORY (8) ---- Ion Engine Ion Engine Aluminum Leg Aluminum Leg Heat Sink Visual Processing Unit EM Pulse Gun Makeshift Axe Peak State ------------ > --- POWER ------------ Light Nuclear Core > --- PROPULSION ------- Aluminum Leg Aluminum Leg > --- UTILITY ---------- Improved Heat Sink Small Storage Unit > --- WEAPON ----------- Medium Laser Light Assault Rifle > --- INVENTORY -------- Ion Engine Light Ion Engine Light Nuclear Core Aluminum Leg Aluminum Leg Heat Sink Visual Processing Unit [Rating: 12] Favorites ----------- Power Light Ion Engine Engine Light Ion Engine Power Core Light Nuclear Core Propulsion Aluminum Leg Leg Aluminum Leg Utility Small Storage Unit Device Sensor Array Storage Small Storage Unit Protection Weapon Shielding Weapon Light Assault Rifle Energy Gun Medium Laser Ballistic Gun Light Assault Rifle Launcher Rocket Launcher Build | -11 -10 -10 -10 -9 ------- Run | Yrd Mat Min Exi Min Slots Evolved . | . . . . . Power . | . . . . . Propulsion . | . . . . . Utility . | . . . . . Weapon . | . . . . . Parts Attached 26 | 7 4 14 1 . Power 6 | 1 1 4 . . Engine 4 | 1 . 3 . . Core 2 | . 1 1 . . Reactor . | . . . . . Propulsion 8 | 2 1 5 . . Treads . | . . . . . Leg 8 | 2 1 5 . . Wheel . | . . . . . Hover . | . . . . . Flight . | . . . . . Utility 6 | 1 1 3 1 . Device 3 | . 1 2 . . Storage 2 | 1 . . 1 . Processor . | . . . . . Hackware . | . . . . . Protection 1 | . . 1 . . Artifact . | . . . . . Weapon 6 | 3 1 2 . . Energy Gun 2 | 1 1 . . . Energy Cannon . | . . . . . Ballistic Gun 3 | 2 . 1 . . Ballistic Cannon . | . . . . . Launcher 1 | . . 1 . . Special Weapon . | . . . . . Impact Weapon . | . . . . . Slashing Weapon . | . . . . . Piercing Weapon . | . . . . . Special Melee Weapon . | . . . . . Unidentified Prototypes . | . . . . . Parts Lost 9 | . . 9 . . Power 1 | . . 1 . . Propulsion 4 | . . 4 . . Utility 1 | . . 1 . . Weapon 3 | . . 3 . . Highest Loss Streak 5 | . . 5 . . To Critical Strikes . | . . . . . Average Backups 6 | 1 5 6 8 8 Power 2 | . 1 2 2 2 Propulsion 1 | . 1 1 2 2 Utility 1 | . 1 1 2 2 Weapon 1 | . 1 . 1 2 Tool/Special . | . . . . . Unused Backups 3 | . . . . 3 Power . | . . . . . Propulsion . | . . . . . Utility 1 | . . . . 1 Weapon 2 | . . . . 2 Tool/Special . | . . . . . Average Slot Usage (%) 97 | . 96 93 100 100 Engine 9 | . 3 7 14 14 Core 4 | . 10 7 . . Leg 27 | . 26 27 28 28 Device 7 | . 13 11 . . Storage 14 | . 14 14 14 14 Protection 6 | . . 1 14 14 Energy Gun 5 | . 12 6 . . Ballistic Gun 13 | . 13 13 14 14 Launcher 7 | . . 3 14 14 Peak Build Rating 12 | 6 10 12 9 9 Average Rating 8 | 4 9 9 8 9 On Entrance 6 | . 6 10 9 9 Avg Prop Armor Cover (%) . | . . . . . Naked Turns . | . . . . . Heaviest Build 16 | 14 16 16 14 14 Greatest Support 20 | 20 20 20 20 20 Greatest Overweight (x) 4 | 1 4 . . . Average Overweight (x) . | . . . . . Largest Inventory Capacity 8 | 8 8 8 8 8 Average Capacity 7 | 7 8 8 8 8 Most Carried 8 | 2 8 8 8 8 Average Carried 6 | 1 5 6 7 8 Final Capacity 8 | 8 8 8 8 8 Final Carried 8 | 2 7 8 8 8 Class Distribution -------------------- 70% | Mutant 29% | Scavenger-Mutant Dominant Class ---------------- Mutant | -10/Materials Scavenger-Mutant | -10/Mines Mutant | -10/Exiles Mutant | -9/Mines Resources | -11 -10 -10 -10 -9 ----------- Run | Yrd Mat Min Exi Min Matter Collected 630 | 185 163 282 . . Remotely . | . . . . . Salvage Created 475 | . 237 238 . . Parts 20 | . 11 9 . . Haulers Intercepted . | . . . . . Recyclers Shooed . | . . . . . Parts Field Recycled . | . . . . . Retrieved Matter . | . . . . . Parts Self-Destructed . | . . . . . Prevented . | . . . . . Parts Restored . | . . . . . Kills | -11 -10 -10 -10 -9 ------- Run | Yrd Mat Min Exi Min Combat Hostiles Destroyed 12 | . 5 7 . . Guns 12 | . 5 7 . . Classes Destroyed 3 | . 2 1 . . Watcher 1 | . 1 . . . Swarmer 2 | . . 2 . . Grunt 10 | . 5 5 . . Best Kill Streak 3 | . 3 3 . . Combat Bots Only 3 | . 3 3 . . Max Kills in Single Turn 1 | . 1 1 . . Gunslinging . | . . . . . Exploded . | . . . . . Melee . | . . . . . Uniques/NPCs Destroyed . | . . . . . Combat | -11 -10 -10 -10 -9 -------- Run | Yrd Mat Min Exi Min Hostile Shots Fired 121 | . 15 102 . 4 Missed 22 | . 2 18 . 2 Hits 99 | . 13 84 . 2 Projectile 99 | . 13 84 . 2 Critical Strikes 2 | . 1 1 . . Damage Taken 1215 | . 153 1047 . 15 Core 253 | . 37 207 . 9 Absorbed by Shields . | . . . . . Redirected to Shielding 1 | . . . . 1 Core Remaining (%) 100 | 100 . . . . Volleys Fired 71 | . 18 53 . . Largest 2 | . 2 2 . . Hottest 115 | . 85 115 . . Shots Fired 108 | . 36 72 . . Gun 108 | . 36 72 . . Cannon . | . . . . . Launcher . | . . . . . Special . | . . . . . Kinetic 64 | . 18 46 . . Thermal 44 | . 18 26 . . Explosive . | . . . . . Electromagnetic . | . . . . . Robot Hit Streak 12 | . 9 12 . . Robot Miss Streak 5 | . 3 5 . . Penetration Max . | . . . . . Secondary Targets . | . . . . . Shots Hit Robots 73 | . 22 51 . . Core Hits 26 | . 10 16 . . Critical Kills . | . . . . . Critical Parts Destroyed . | . . . . . Critical Strikes 2 | . 2 . . . Burn 2 | . 2 . . . Melee Attacks . | . . . . . Impact . | . . . . . Slashing . | . . . . . Piercing . | . . . . . Sneak Attacks . | . . . . . Combat Hostiles . | . . . . . Follow-up Attacks . | . . . . . Damage Inflicted 806 | . 303 503 . . Guns 806 | . 303 503 . . Cannons . | . . . . . Explosions . | . . . . . Melee . | . . . . . Ramming . | . . . . . Kinetic 460 | . 139 321 . . Thermal 346 | . 164 182 . . Explosive . | . . . . . Electromagnetic . | . . . . . Impact . | . . . . . Slashing . | . . . . . Piercing . | . . . . . Highest Corruption . | . . . . . Average Corruption . | . . . . . Corruption Purged . | . . . . . Corruption Blocked . | . . . . . Overload Shots . | . . . . . Overflow Damage . | . . . . . Projectiles . | . . . . . Explosions . | . . . . . Melee . | . . . . . Knockbacks . | . . . . . Impact . | . . . . . Kinetic . | . . . . . Secondary . | . . . . . Self-Inflicted Damage . | . . . . . Shots . | . . . . . Rammed . | . . . . . Targets Rammed . | . . . . . Kicked . | . . . . . Crushed . | . . . . . Highest Temperature 345 | . 150 345 . . Average Temperature 106 | . 56 153 . . Received Heat Transfer 576 | . 105 471 . . Effects 1 | . . 1 . . Shutdowns 1 | . . 1 . . Siege Activations . | . . . . . Martial Activations . | . . . . . Shielding Activations . | . . . . . Robots Disrupted . | . . . . . Combat Hostiles . | . . . . . Robots Corrupted . | . . . . . Combat Hostiles . | . . . . . Parts Fried . | . . . . . Impact Corruptions . | . . . . . Robots Melted . | . . . . . Combat Hostiles . | . . . . . Parts Melted 5 | . 1 4 . . Heat Transferred 1110 | . 592 518 . . Parts Sabotaged . | . . . . . Parts Stolen . | . . . . . Parts Stripped . | . . . . . Power Chain Reactions . | . . . . . Alert | -11 -10 -10 -10 -9 ------- Run | Yrd Mat Min Exi Min Maximum Alert Level . | . . . . . Low Security (%) 100 | 100 100 100 . 100 Level 1 . | . . . . . Level 2 . | . . . . . Level 3 . | . . . . . Level 4 . | . . . . . Level 5 . | . . . . . High Security . | . . . . . Max Security . | . . . . . Peak Influence 61 | . 61 40 . . Initial . | . . . . . Average 11 | . 21 7 . . Influence Increases 298 | . 128 170 . . Destroy 0b10 Robot/C 240 | . 100 140 . . Destroy 0b10 Robot/NC 5 | . 5 . . . Destroy Leader 52 | . 22 30 . . Destroy Structure 1 | . 1 . . . Influence Decreases 298 | . 128 170 . . Time Decay 238 | . 128 110 . . Lost Part 60 | . . 60 . . Squads Dispatched 1 | . 1 . . . Investigation . | . . . . . Extermination . | . . . . . Reinforcement 1 | . 1 . . . Assault . | . . . . . Garrison . | . . . . . Intercept . | . . . . . Searches Triggered . | . . . . . Construction Impeded . | . . . . . Haulers Reinforced . | . . . . . Active Scanning Responses . | . . . . . Cargo Convoy Interrupts . | . . . . . Stealth | -11 -10 -10 -10 -9 --------- Run | Yrd Mat Min Exi Min Distress Signals 1 | . 1 . . . Communications Jammed . | . . . . . Distress Signals . | . . . . . Times Spotted 22 | . 10 9 . 3 Peak Tracking Total 5 | . 3 5 . 3 Tactical Retreats . | . . . . . Traps | -11 -10 -10 -10 -9 ------- Run | Yrd Mat Min Exi Min Traps Triggered 3 | . 3 . . . Indirectly . | . . . . . Trap Hack Attempts . | . . . . . Triggered . | . . . . . Disarmed . | . . . . . Reprogrammed . | . . . . . Reused . | . . . . . Traps Extracted . | . . . . . Installed . | . . . . . Triggered . | . . . . . Machines | -11 -10 -10 -10 -9 ---------- Run | Yrd Mat Min Exi Min Machines Disabled . | . . . . . Max in Single Turn . | . . . . . Machines Repaired . | . . . . . Machines Dismantled . | . . . . . Machines Sabotaged . | . . . . . Overloaded Fab Kills . | . . . . . Hacking | -11 -10 -10 -10 -9 --------- Run | Yrd Mat Min Exi Min Machines Accessed 2 | . 1 . 1 . Terminals 1 | . 1 . . . Fabricators . | . . . . . Repair Stations . | . . . . . Recycling Units . | . . . . . Scanalyzers . | . . . . . Garrison Access . | . . . . . Total Hacks 27 | . 4 . 23 . Successful 24 | . 1 . 23 . Failed 3 | . 3 . . . Catastrophic . | . . . . . Database Lockouts . | . . . . . Manual . | . . . . . Terminals 4 | . 4 . . . Fabricators . | . . . . . Repair Stations . | . . . . . Recycling Units . | . . . . . Scanalyzers . | . . . . . Garrison Access . | . . . . . Terminal Hacks 24 | . 1 . 23 . Record 23 | . . . 23 . Prototype ID Bank 1 | . 1 . . . Fabricator Hacks . | . . . . . Repair Station Hacks . | . . . . . Recycling Unit Hacks . | . . . . . Scanalyzer . | . . . . . Garrison Access Hacks . | . . . . . Unauthorized Hacks . | . . . . . Terminals . | . . . . . Fabricators . | . . . . . Repair Stations . | . . . . . Recycling Units . | . . . . . Scanalyzers . | . . . . . Garrison Access . | . . . . . Data Cores Recovered . | . . . . . Used . | . . . . . Hacking Detections 1 | . 1 . . . Full Trace Events . | . . . . . Feedback Events . | . . . . . Feedback Blocked . | . . . . . Robot Schematics Acquired . | . . . . . Robots Built . | . . . . . Authchips . | . . . . . Time . | . . . . . Total Robot Build Rating . | . . . . . Part Schematics Acquired . | . . . . . Parts Built . | . . . . . Authchips . | . . . . . Time . | . . . . . Total Part Build Rating . | . . . . . Part Studies Acquired . | . . . . . Parts Repaired . | . . . . . Time . | . . . . . Parts Recycled . | . . . . . Recycled Matter . | . . . . . Retrieved Matter . | . . . . . Retrieved Components . | . . . . . Parts Scanalyzed . | . . . . . Part Schematics Acquired . | . . . . . Parts Damaged . | . . . . . Bothacking | -11 -10 -10 -10 -9 ------------ Run | Yrd Mat Min Exi Min Used RIF Installer . | . . . . . Robots Hacked . | . . . . . Non-combat . | . . . . . Combat . | . . . . . Robot Hacks Applied . | . . . . . Relay Couplers Released . | . . . . . Fabnet Peak Effective % . | . . . . . Robots Rewired . | . . . . . Allies Hacked . | . . . . . Hacks Repelled . | . . . . . Allies | -11 -10 -10 -10 -9 -------- Run | Yrd Mat Min Exi Min Total Allies . | . . . . . Largest Group . | . . . . . Highest-Rated Group . | . . . . . Highest-Rated Ally . | . . . . . Total Orders . | . . . . . Ally Attacks . | . . . . . Total Damage . | . . . . . Kills . | . . . . . Allies Corrupted . | . . . . . Allies Melted . | . . . . . Intel | -11 -10 -10 -10 -9 ------- Run | Yrd Mat Min Exi Min Active Infowar (turns) 366 | . 355 11 . . Sensors 366 | . 355 11 . . Robot Analysis Total . | . . . . . Derelict Logs Recovered 3 | . . 2 . 1 Drone Launches . | . . . . . Drone Recoveries . | . . . . . Exploration | -11 -10 -10 -10 -9 ------------- Run | Yrd Mat Min Exi Min Turns Passed 1657 | 71 368 554 587 77 Spaces Moved 1116 | 46 188 332 486 64 Core 5 | 4 1 . . . Treads . | . . . . . Legs 1111 | 42 187 332 486 64 Wheels . | . . . . . Hover . | . . . . . Flight . | . . . . . Fastest Speed 50 | 50 120 120 120 120 Average Speed 120 | 128 121 120 120 120 Slowest Speed 250 | 190 250 120 120 120 Overloaded Moves . | . . . . . Propulsion Burnouts . | . . . . . Robots Hopped . | . . . . . Potential Cave-ins . | . . . . . Cave-ins Triggered . | . . . . . Exploration Rate (%) 40 | 4 29 74 80 17 Regions Visited 4 Branch Regions 3 Pre-discovered Areas 3 | . . 1 1 1 Known Exits Taken . | . . . . . Unknown Exits Taken 4 | 1 1 1 1 . Scrap Searched 1 | . . 1 . . Spaces Dug . | . . . . . Terrain Destroyed . | . . . . . Melee . | . . . . . Projectile . | . . . . . AOE . | . . . . . Terrain Rammed . | . . . . . Walls Destroyed . | . . . . . Machines Disabled . | . . . . . Actions | -11 -10 -10 -10 -9 --------- Run | Yrd Mat Min Exi Min Total 1317 | 55 287 420 491 64 Wait 73 | . 64 9 . . Move 1112 | 45 187 331 485 64 Hop . | . . . . . Pick Up 15 | 3 7 4 1 . Fast Attach 12 | 5 6 1 . . Attach 11 | 1 1 9 . . Detach 1 | . . 1 . . Swap 15 | 1 3 10 1 . Drop 5 | . 1 2 2 . Fire 71 | . 18 53 . . Melee . | . . . . . Ram . | . . . . . Kick . | . . . . . Crush . | . . . . . Escape Stasis . | . . . . . Rewire 2 | . . . 2 . Trap . | . . . . . Miscellaneous . | . . . . . Route ------- -11/Scrapyard -10/Materials -10/Mines -10/Exiles (discovered 2 exits: [*Min x2]) -9/Mines History --------- Turn | Location | Event 21 | -11/Scrapyard | Discovered new exit (range 16) 72 | -11/Scrapyard | Entered Materials 361 | -10/Materials | Build established: Mutant 417 | -10/Materials | Discovered new exit (range 12) 440 | -10/Materials | Entered Mines 468 | -10/Mines | Core integrity fell below 50% 502 | -10/Mines | Lost 5 parts (2n1u2w) 611 | -10/Mines | Learned location of Storage (-7) 615 | -10/Mines | Learned Materials security intel 655 | -10/Mines | Core integrity fell below 20% 769 | -10/Mines | Lost 4 parts (1p2n1w) 802 | -10/Mines | Build established: Scavenger-Mutant 852 | -10/Mines | Received a Rocket Launcher from a helpful Derelict 987 | -10/Mines | Deemed a non-threat by the Exiles lab entrance 988 | -10/Mines | Discovered new exit (range 5) 994 | -10/Mines | Entered Exiles 994 | -10/Exiles | Found Exiles lab destroyed 1014 | -10/Exiles | Discovered new exit (range 15) 1123 | -10/Exiles | Learned location of Zion (-6) 1222 | -10/Exiles | Discovered new exit (range 10) 1247 | -10/Exiles | Build established: Mutant 1581 | -10/Exiles | Entered Mines 1658 | -9/Mines | Destroyed by S-10 Pest with Light Assault Rifle Last Messages --------------- >>Record! "MSG004795-02" I just repaired it not long ago, I think someone on the outside is tampering with our system. --AM-PHS >>Record! "MSG004964-01" Who left my Assembled plushie in the Analyzer again?! I'm not erasing this message until I get an answer. --BIN 01150_ Attempting to rewire G-34 Mercenary. 01150_ G-34 Mercenary is broken beyond repair. 01169_ Dropped Sml. Storage Unit. 01222_ EXIT=FOUND 01296_ Dropped Lgt. Nuclear Core. 01297_ Acquired Mak. Axe. 01502_ Attempting to rewire P-60 Hacker. 01502_ P-60 Hacker cannot be rewired. LOCATION=UNKNOWN GOAL=ESCAPE 01610_ Acquired derelict log, extracted data. World map confirmed: -6/Zion. Map ----- +----------------------------------------------------+ | ????????????????????????????? ?????????????? | | ????????????????????????????# ?????????????? | | ???????????????????????????# ??????????????? | | ?????????####????????????## ???????????????? | | ????????## #######?????## ?????????????????? | | ????????# #????## #???????????????????? | | ???????## #### ###### #????????????????????? | | ???????# #??# #????????????????????? | | ???????# #??# ##???????????????????? | | ???????## #??###### ##??????????????????? | | ???????## #???????## ##?????????????????? | | ???????# ##????????### #?????????????????? | | ???????# ##???????????## #?????????????????? | | ???????#####????????????## #?????????????????? | | ???????????????????????## ##????????????????? | | ???????????????????????# #????????????????? | | ???????????????????????# #????????????????? | | ???????????????????????# #????????????????? | | ???????????????????????# ##????????????????? | | ?????????????????###???## ##?????????????????? | | ????????????????## ????# ####??????????????????? | | ????????# ?????## ???# #?????????????????????? | | ????????# #### ???# #?????????????????????? | | ????????# ???# #?????????????????????? | | ????????# #### #?????????????????????? | | ???????# @ #?????????????????????? | | ??????# s #?????????????????????? | | ??????# #####?????????????????????? | | ???????# ##?????????????????????????? | | ???????## ## s ???????????????????????????? | | ?????????????## ???????????????????????????? | | ??????????????## ???????????????????????????? | | ???????????????## ????????????????????????????? | | ????????????????# ????????????????????????????? | | ????????????????# ????????????????????????????? | | ????????????????# ????????????????????????????? | | ????????????????# ?????????????????????????????? | | ????????????????# ?????????????????????????????? | | ????????????????## ?????????????????????????????? | | ?????????????????# ?????????????????????????????? | | ?????????????????#??????????????????????????????? | | ????????????????????????????????????????????????? | | ????????????????????????????????????????????????? | | ????????????????????????????????????????????????? | | ????????????????????????????????????????????????? | | ????????????????????????????????????????????????? | | ????????????????????????????????????????????????? | | ????????????????????????????????????????????????? | | ????????????????????????????????????????????????? | | ????????????????????????????????????????????????? | +----------------------------------------------------+ Best States ------------- Heat Dissipation 39 Energy Generation 14 Energy Capacity 250 Matter Stores 300 Matter Capacity 300 Sight Range 16 Robot Scan Range 14 Terrain Scan Density 10 Weapon Shielding 33 Evasion (%) 55 Item Schematics ----------------- None Robot Schematics ------------------ None Fabricated ------------ Nothing Repaired ---------- Nothing Studied --------- None Alien Tech Used ----------------- None Achievements -------------- None Challenges ------------ None Game ------ Seed BehemothMetaWand Manual? 0 Play Time 00:22:35 Cumulative 37.7 hours Start 2025.11.10 @ 04:15:30 End 2025.11.10 @ 04:42:30 Sessions 1 Manual Loads 0 Difficulty Rogue Special Mode None Game No. 27 Rogue 27 Adventurer 0 Explorer 0 Win Type - Total 0 Types 0/0/0/0/0/0/0/0/0/0 Lore% 14 Gallery% 21 Achievement% 16 Wizard Run 0 Options --------- Layout 1 ASCII 1 Keyboard 1 Movement Vi Keybinds 0 Fullscreen 2 Font 32/Tamsyn Map View 50x35 Zoom Use 0% Tactical HUD 1 Map Filters NONE Filters NONE Steam 1 RUN: 2163258c-fa9f-455b-929f-a0b7a1968ff5